[Event "Titled Tuesday Blitz June 27 Early 2023"]
[White "Mahdavi, Reza"]
[Black "Gurel, Ediz"]
[WhiteFideId "12595926"]
[BlackFideId "44507356"]
[WhiteElo "2741"]
[BlackElo "2968"]
[Result "1-0"]
[Round "3"]
[TimeControl "180+2"]
[Date "2023.06.27"]
[WhiteClock "0:00:14"]
[BlackClock "0:00:03"]
[Board "17"]

1. e4 {[%clk 0:03:00]}  c5 {[%clk 0:02:59]} 2. Nf3 {[%clk 0:03:01]}  Nc6 {[%clk 0:03:00]} 3. Bb5 {[%clk 0:03:01]}  Qc7 {[%clk 0:02:59]} 4. O-O {[%clk 0:03:00]}  e6 {[%clk 0:02:58]} 5. Nc3 {[%clk 0:02:44]}  Nd4 {[%clk 0:02:40]} 6. Nxd4 {[%clk 0:02:44]}  cxd4 {[%clk 0:02:41]} 7. Ne2 {[%clk 0:02:45]}  Nf6 {[%clk 0:02:41]} 8. d3 {[%clk 0:02:45]}  a6 {[%clk 0:02:32]} 9. Ba4 {[%clk 0:02:45]}  b5 {[%clk 0:02:33]} 10. Bb3 {[%clk 0:02:45]}  Bc5 {[%clk 0:02:33]} 11. h3 {[%clk 0:02:44]}  O-O {[%clk 0:02:33]} 12. Bg5 {[%clk 0:02:43]}  Bb7 {[%clk 0:02:17]} 13. Qd2 {[%clk 0:02:37]}  a5 {[%clk 0:02:10]} 14. Bxf6 {[%clk 0:02:11]}  gxf6 {[%clk 0:02:11]} 15. Qh6 {[%clk 0:02:12]}  Be7 {[%clk 0:01:49]} 16. Ng3 {[%clk 0:02:06]}  Kh8 {[%clk 0:01:47]} 17. Nh5 {[%clk 0:02:05]}  Rg8 {[%clk 0:01:48]} 18. Nxf6 {[%clk 0:02:05]}  Rg7 {[%clk 0:01:48]} 19. a4 {[%clk 0:01:53]}  Qd8 {[%clk 0:01:13]} 20. Nh5 {[%clk 0:01:49]}  Rg5 {[%clk 0:01:07]} 21. Ng3 {[%clk 0:01:41]}  b4 {[%clk 0:01:01]} 22. Rae1 {[%clk 0:01:37]}  Qg8 {[%clk 0:00:54]} 23. Kh2 {[%clk 0:01:28]}  Bd6 {[%clk 0:00:50]} 24. Qf6+ {[%clk 0:01:27]}  Qg7 {[%clk 0:00:46]} 25. Qxg7+ {[%clk 0:01:26]}  Rxg7 {[%clk 0:00:46]} 26. e5 {[%clk 0:01:25]}  Bc7 {[%clk 0:00:45]} 27. f4 {[%clk 0:00:47]}  Rag8 {[%clk 0:00:44]} 28. Ne4 {[%clk 0:00:48]}  Rxg2+ {[%clk 0:00:44]} 29. Kh1 {[%clk 0:00:49]}  R2g3 {[%clk 0:00:36]} 30. Kh2 {[%clk 0:00:44]}  Rg2+ {[%clk 0:00:36]} 31. Kh1 {[%clk 0:00:45]}  R2g3 {[%clk 0:00:20]} 32. Kh2 {[%clk 0:00:42]}  Re3 {[%clk 0:00:21]} 33. Rxe3 {[%clk 0:00:34]}  dxe3 {[%clk 0:00:22]} 34. Re1 {[%clk 0:00:35]}  Bb6 {[%clk 0:00:23]} 35. c3 {[%clk 0:00:32]}  bxc3 {[%clk 0:00:21]} 36. bxc3 {[%clk 0:00:32]}  Bxe4 {[%clk 0:00:16]} 37. dxe4 {[%clk 0:00:33]}  Rc8 {[%clk 0:00:17]} 38. c4 {[%clk 0:00:33]}  Bc5 {[%clk 0:00:11]} 39. Bd1 {[%clk 0:00:26]}  Rb8 {[%clk 0:00:10]} 40. Bh5 {[%clk 0:00:23]}  Rb2+ {[%clk 0:00:09]} 41. Re2 {[%clk 0:00:22]}  Rb4 {[%clk 0:00:05]} 42. Bxf7 {[%clk 0:00:21]}  Rxc4 {[%clk 0:00:06]} 43. Kg2 {[%clk 0:00:21]}  Rxe4 {[%clk 0:00:06]} 44. Kf3 {[%clk 0:00:20]}  Rxa4 {[%clk 0:00:06]} 45. Be8 {[%clk 0:00:21]}  Rb4 {[%clk 0:00:02]} 46. Bxd7 {[%clk 0:00:21]}  a4 {[%clk 0:00:02]} 47. Bxe6 {[%clk 0:00:22]}  a3 {[%clk 0:00:03]} 48. f5 {[%clk 0:00:21]}  Bd4 {[%clk 0:00:03]} 49. Rg2 {[%clk 0:00:19]}  Rb8 {[%clk 0:00:02]} 50. f6 {[%clk 0:00:18]}  Bxe5 {[%clk 0:00:03]} 51. f7 {[%clk 0:00:19]}  Bg7 {[%clk 0:00:04]} 52. Kxe3 {[%clk 0:00:18]}  h6 {[%clk 0:00:04]} 53. Ke4 {[%clk 0:00:18]}  Rb4+ {[%clk 0:00:04]} 54. Kd5 {[%clk 0:00:18]}  Rb5+ {[%clk 0:00:04]} 55. Kc6 {[%clk 0:00:18]}  Rb8 {[%clk 0:00:05]} 56. Rg3 {[%clk 0:00:14]}  Ra8 {[%clk 0:00:04]} 57. Ba2 {[%clk 0:00:15]}  Rc8+ {[%clk 0:00:02]} 58. Kd7 {[%clk 0:00:14]}  Ra8 {[%clk 0:00:02]} 59. Kc7 {[%clk 0:00:12]}  Ra7+ {[%clk 0:00:03]} 60. Kb6 {[%clk 0:00:12]}  Ra8 {[%clk 0:00:03]} 61. Kb7 {[%clk 0:00:12]}  Rd8 {[%clk 0:00:01]} 62. Rxa3 {[%clk 0:00:11]}  Bf8 {[%clk 0:00:02]} 63. Rg3 {[%clk 0:00:11]}  Bg7 {[%clk 0:00:02]} 64. Kc7 {[%clk 0:00:12]}  Ra8 {[%clk 0:00:02]} 65. Be6 {[%clk 0:00:12]}  Ra7+ {[%clk 0:00:02]} 66. Kd8 {[%clk 0:00:12]}  Ra8+ {[%clk 0:00:02]} 67. Ke7 {[%clk 0:00:13]}  Bf8+ {[%clk 0:00:03]} 68. Kf6 {[%clk 0:00:12]}  h5 {[%clk 0:00:01]} 69. Rg8+ {[%clk 0:00:12]}  Kh7 {[%clk 0:00:02]} 70. Bf5+ {[%clk 0:00:13]}  Kh6 {[%clk 0:00:03]} 71. Rh8# {[%clk 0:00:14]} 1-0


[Site "https://www.chess.com"]

[Event "Titled Tuesday Blitz June 27 Early 2023"]
[White "Nguyen, Ngoc Truong Son"]
[Black "gau_npukyputb"]
[WhiteFideId "12401110"]
[WhiteElo "2964"]
[BlackElo "2739"]
[Result "1-0"]
[Round "3"]
[TimeControl "180+2"]
[Date "2023.06.27"]
[WhiteClock "0:00:12"]
[BlackClock "0:00:00"]
[Board "18"]

1. d4 {[%clk 0:03:00]}  Nf6 {[%clk 0:02:57]} 2. c4 {[%clk 0:03:01]}  d6 {[%clk 0:02:57]} 3. Nf3 {[%clk 0:03:00]}  Bg4 {[%clk 0:02:55]} 4. Qb3 {[%clk 0:02:56]}  Qc8 {[%clk 0:02:55]} 5. g3 {[%clk 0:02:53]}  Nbd7 {[%clk 0:02:53]} 6. Bg2 {[%clk 0:02:52]}  e5 {[%clk 0:02:53]} 7. O-O {[%clk 0:02:38]}  Be7 {[%clk 0:02:51]} 8. Be3 {[%clk 0:02:26]}  O-O {[%clk 0:02:50]} 9. Nc3 {[%clk 0:02:22]}  c6 {[%clk 0:02:49]} 10. Rad1 {[%clk 0:02:02]}  exd4 {[%clk 0:02:43]} 11. Nxd4 {[%clk 0:01:57]}  Nc5 {[%clk 0:02:44]} 12. Qc2 {[%clk 0:01:57]}  a5 {[%clk 0:02:40]} 13. b3 {[%clk 0:01:51]}  Re8 {[%clk 0:02:34]} 14. a3 {[%clk 0:01:48]}  Bf8 {[%clk 0:02:17]} 15. Bg5 {[%clk 0:01:38]}  Re5 {[%clk 0:00:56]} 16. Bxf6 {[%clk 0:01:36]}  gxf6 {[%clk 0:00:57]} 17. b4 {[%clk 0:01:30]}  axb4 {[%clk 0:00:56]} 18. axb4 {[%clk 0:01:31]}  Ne6 {[%clk 0:00:46]} 19. Nf3 {[%clk 0:01:17]}  Rh5 {[%clk 0:00:21]} 20. Ne4 {[%clk 0:01:14]}  Qd8 {[%clk 0:00:21]} 21. Qc3 {[%clk 0:01:10]}  Be7 {[%clk 0:00:20]} 22. Rxd6 {[%clk 0:01:04]}  Bxd6 {[%clk 0:00:19]} 23. Nxf6+ {[%clk 0:01:04]}  Kf8 {[%clk 0:00:19]} 24. Nxg4 {[%clk 0:01:04]}  Ng5 {[%clk 0:00:13]} 25. Rd1 {[%clk 0:00:42]}  Ne4 {[%clk 0:00:13]} 26. Qe3 {[%clk 0:00:36]}  Qe7 {[%clk 0:00:12]} 27. c5 {[%clk 0:00:33]}  Bc7 {[%clk 0:00:12]} 28. Nh4 {[%clk 0:00:23]}  Re8 {[%clk 0:00:11]} 29. Qxe4 {[%clk 0:00:21]}  Qxe4 {[%clk 0:00:12]} 30. Bxe4 {[%clk 0:00:21]}  Rxe4 {[%clk 0:00:13]} 31. Nf6 {[%clk 0:00:22]}  Rhxh4 {[%clk 0:00:11]} 32. gxh4 {[%clk 0:00:22]}  Rxb4 {[%clk 0:00:08]} 33. Rd7 {[%clk 0:00:18]}  Be5 {[%clk 0:00:06]} 34. Nxh7+ {[%clk 0:00:18]}  Ke8 {[%clk 0:00:06]} 35. Rd3 {[%clk 0:00:18]}  Rxh4 {[%clk 0:00:05]} 36. Re3 {[%clk 0:00:18]}  Rxh7 {[%clk 0:00:03]} 37. Rxe5+ {[%clk 0:00:18]}  Kf8 {[%clk 0:00:04]} 38. f4 {[%clk 0:00:16]}  Rh3 {[%clk 0:00:03]} 39. Kg2 {[%clk 0:00:16]}  Rc3 {[%clk 0:00:03]} 40. h4 {[%clk 0:00:16]}  f6 {[%clk 0:00:02]} 41. Rf5 {[%clk 0:00:15]}  Kg7 {[%clk 0:00:02]} 42. h5 {[%clk 0:00:16]}  Rc2 {[%clk 0:00:01]} 43. Kf3 {[%clk 0:00:16]}  Rc3+ {[%clk 0:00:01]} 44. e3 {[%clk 0:00:16]}  Rc4 {[%clk 0:00:02]} 45. e4 {[%clk 0:00:14]}  Rc3+ {[%clk 0:00:01]} 46. Ke2 {[%clk 0:00:14]}  Rc4 {[%clk 0:00:02]} 47. Kd3 {[%clk 0:00:14]}  Rc1 {[%clk 0:00:02]} 48. Kd4 {[%clk 0:00:14]}  Rd1+ {[%clk 0:00:02]} 49. Ke3 {[%clk 0:00:14]}  Re1+ {[%clk 0:00:03]} 50. Kd3 {[%clk 0:00:14]}  Rd1+ {[%clk 0:00:03]} 51. Ke2 {[%clk 0:00:15]}  Rc1 {[%clk 0:00:03]} 52. e5 {[%clk 0:00:14]}  fxe5 {[%clk 0:00:04]} 53. Rxe5 {[%clk 0:00:14]}  Rb1 {[%clk 0:00:04]} 54. Kf3 {[%clk 0:00:15]}  b6 {[%clk 0:00:03]} 55. cxb6 {[%clk 0:00:14]}  Rxb6 {[%clk 0:00:04]} 56. Kg4 {[%clk 0:00:14]}  Rb5 {[%clk 0:00:00]} 57. Kg5 {[%clk 0:00:12]} 1-0


[Site "https://www.chess.com"]

[Event "Titled Tuesday Blitz June 27 Early 2023"]
[White "Morefield, Jason"]
[Black "Sanal, Vahap"]
[WhiteFideId "30920825"]
[BlackFideId "6300545"]
[WhiteElo "2737"]
[BlackElo "2962"]
[Result "1-0"]
[Round "3"]
[TimeControl "180+2"]
[Date "2023.06.27"]
[WhiteClock "0:00:19"]
[BlackClock "0:01:50"]
[Board "19"]

1. e4 {[%clk 0:03:00]}  d6 {[%clk 0:03:00]} 2. d4 {[%clk 0:03:00]}  Nf6 {[%clk 0:03:01]} 3. Nc3 {[%clk 0:02:59]}  e5 {[%clk 0:02:59]} 4. dxe5 {[%clk 0:02:57]}  dxe5 {[%clk 0:02:59]} 5. Qxd8+ {[%clk 0:02:58]}  Kxd8 {[%clk 0:03:00]} 6. Bc4 {[%clk 0:02:58]}  Ke8 {[%clk 0:03:00]} 7. f4 {[%clk 0:02:58]}  Bb4 {[%clk 0:02:59]} 8. Bd3 {[%clk 0:02:58]}  Nbd7 {[%clk 0:02:58]} 9. Nf3 {[%clk 0:02:51]}  exf4 {[%clk 0:02:58]} 10. Bxf4 {[%clk 0:02:44]}  c6 {[%clk 0:02:59]} 11. O-O {[%clk 0:02:39]}  Nc5 {[%clk 0:02:51]} 12. Be5 {[%clk 0:02:09]}  Rg8 {[%clk 0:02:36]} 13. a3 {[%clk 0:01:57]}  Ba5 {[%clk 0:02:36]} 14. b4 {[%clk 0:01:56]}  Nxd3 {[%clk 0:02:36]} 15. cxd3 {[%clk 0:01:56]}  Bb6+ {[%clk 0:02:36]} 16. Kh1 {[%clk 0:01:55]}  Ng4 {[%clk 0:02:34]} 17. Bd4 {[%clk 0:01:53]}  Be6 {[%clk 0:02:32]} 18. Bxb6 {[%clk 0:01:43]}  axb6 {[%clk 0:02:32]} 19. h3 {[%clk 0:01:43]}  Nf6 {[%clk 0:02:30]} 20. Kg1 {[%clk 0:01:27]}  Ke7 {[%clk 0:02:28]} 21. Kf2 {[%clk 0:01:25]}  b5 {[%clk 0:02:26]} 22. Ke3 {[%clk 0:01:24]}  Ra7 {[%clk 0:02:25]} 23. a4 {[%clk 0:01:20]}  Rga8 {[%clk 0:02:21]} 24. a5 {[%clk 0:01:16]}  b6 {[%clk 0:02:21]} 25. Nd4 {[%clk 0:01:10]}  Bd7 {[%clk 0:02:20]} 26. e5 {[%clk 0:01:08]}  Ne8 {[%clk 0:02:19]} 27. axb6 {[%clk 0:00:58]}  Rxa1 {[%clk 0:02:14]} 28. Rxa1 {[%clk 0:00:59]}  Rb8 {[%clk 0:02:14]} 29. Ra6 {[%clk 0:00:49]}  g6 {[%clk 0:02:12]} 30. Ne4 {[%clk 0:00:46]}  f6 {[%clk 0:02:03]} 31. Nc5 {[%clk 0:00:32]}  fxe5 {[%clk 0:01:58]} 32. Nf3 {[%clk 0:00:32]}  Nf6 {[%clk 0:01:54]} 33. Nxe5 {[%clk 0:00:26]}  Be8 {[%clk 0:01:55]} 34. b7 {[%clk 0:00:24]}  Nd5+ {[%clk 0:01:55]} 35. Kd4 {[%clk 0:00:19]}  Nxb4 {[%clk 0:01:55]} 36. Ra8 {[%clk 0:00:19]}  Na6 {[%clk 0:01:48]} 37. Rxa6 {[%clk 0:00:18]}  Kd6 {[%clk 0:01:49]} 38. Ra8 {[%clk 0:00:18]}  Kc7 {[%clk 0:01:49]} 39. Na6+ {[%clk 0:00:17]}  Kxb7 {[%clk 0:01:50]} 40. Rxb8+ {[%clk 0:00:18]}  Kxa6 {[%clk 0:01:50]} 41. Rxe8 {[%clk 0:00:19]} 1-0


[Site "https://www.chess.com"]

[Event "Titled Tuesday Blitz June 27 Early 2023"]
[White "Jones, Gawain C B"]
[Black "Renjith, Sravan"]
[WhiteFideId "409561"]
[BlackFideId "4306783"]
[WhiteElo "2957"]
[BlackElo "2734"]
[Result "1/2-1/2"]
[Round "3"]
[TimeControl "180+2"]
[Date "2023.06.27"]
[WhiteClock "0:00:04"]
[BlackClock "0:01:15"]
[Board "20"]

1. Nf3 {[%clk 0:03:00]}  Nf6 {[%clk 0:03:00]} 2. g3 {[%clk 0:03:00]}  g6 {[%clk 0:03:00]} 3. b3 {[%clk 0:03:01]}  Bg7 {[%clk 0:03:01]} 4. Bb2 {[%clk 0:03:01]}  O-O {[%clk 0:03:00]} 5. Bg2 {[%clk 0:03:01]}  c6 {[%clk 0:02:59]} 6. O-O {[%clk 0:02:59]}  d5 {[%clk 0:02:59]} 7. d3 {[%clk 0:02:55]}  Nbd7 {[%clk 0:02:59]} 8. Nbd2 {[%clk 0:02:54]}  Qc7 {[%clk 0:03:00]} 9. e4 {[%clk 0:02:54]}  e5 {[%clk 0:03:00]} 10. Qe2 {[%clk 0:02:49]}  Re8 {[%clk 0:03:00]} 11. exd5 {[%clk 0:02:43]}  Nxd5 {[%clk 0:02:59]} 12. c4 {[%clk 0:02:35]}  N5b6 {[%clk 0:02:46]} 13. Rac1 {[%clk 0:02:03]}  a5 {[%clk 0:02:42]} 14. Rfe1 {[%clk 0:01:50]}  a4 {[%clk 0:02:37]} 15. b4 {[%clk 0:01:49]}  a3 {[%clk 0:02:37]} 16. Ba1 {[%clk 0:01:49]}  Nf8 {[%clk 0:02:18]} 17. c5 {[%clk 0:01:23]}  Nd5 {[%clk 0:02:16]} 18. Nc4 {[%clk 0:01:24]}  f6 {[%clk 0:02:10]} 19. Nd6 {[%clk 0:01:11]}  Re7 {[%clk 0:02:10]} 20. b5 {[%clk 0:00:59]}  Be6 {[%clk 0:02:01]} 21. d4 {[%clk 0:00:54]}  exd4 {[%clk 0:01:55]} 22. Nxd4 {[%clk 0:00:54]}  Bf7 {[%clk 0:01:55]} 23. Bxd5 {[%clk 0:00:41]}  Rxe2 {[%clk 0:01:41]} 24. Bxf7+ {[%clk 0:00:41]}  Qxf7 {[%clk 0:01:36]} 25. Nxf7 {[%clk 0:00:42]}  Rxe1+ {[%clk 0:01:36]} 26. Rxe1 {[%clk 0:00:43]}  Kxf7 {[%clk 0:01:37]} 27. bxc6 {[%clk 0:00:38]}  bxc6 {[%clk 0:01:36]} 28. Nxc6 {[%clk 0:00:37]}  Rc8 {[%clk 0:01:35]} 29. Re7+ {[%clk 0:00:29]}  Kg8 {[%clk 0:01:34]} 30. Nd4 {[%clk 0:00:27]}  Rxc5 {[%clk 0:01:32]} 31. Kg2 {[%clk 0:00:09]}  Rc1 {[%clk 0:01:27]} 32. Nb3 {[%clk 0:00:09]}  Rc2 {[%clk 0:01:27]} 33. Ra7 {[%clk 0:00:06]}  Rxa2 {[%clk 0:01:27]} 34. Bc3 {[%clk 0:00:05]}  Rc2 {[%clk 0:01:26]} 35. Bd4 {[%clk 0:00:03]}  a2 {[%clk 0:01:26]} 36. Na1 {[%clk 0:00:04]}  Rd2 {[%clk 0:01:26]} 37. Bc3 {[%clk 0:00:04]}  Rd3 {[%clk 0:01:25]} 38. Bb2 {[%clk 0:00:05]}  Rd2 {[%clk 0:01:25]} 39. Bc3 {[%clk 0:00:05]}  Rd3 {[%clk 0:01:22]} 40. Bb2 {[%clk 0:00:05]}  Rd2 {[%clk 0:01:15]} 41. Bc3 {[%clk 0:00:04]} 1/2-1/2


[Site "https://www.chess.com"]

[Event "Titled Tuesday Blitz June 27 Early 2023"]
[White "Zhu, Jiner"]
[Black "Durarbayli, Vasif"]
[WhiteFideId "8608059"]
[BlackFideId "13402935"]
[WhiteElo "2722"]
[BlackElo "2914"]
[Result "0-1"]
[Round "3"]
[TimeControl "180+2"]
[Date "2023.06.27"]
[WhiteClock "0:00:10"]
[BlackClock "0:00:15"]
[Board "24"]

1. e4 {[%clk 0:03:00]}  c5 {[%clk 0:02:59]} 2. Nf3 {[%clk 0:03:01]}  d6 {[%clk 0:03:00]} 3. d4 {[%clk 0:03:01]}  cxd4 {[%clk 0:03:01]} 4. Nxd4 {[%clk 0:03:01]}  Nf6 {[%clk 0:03:02]} 5. Nc3 {[%clk 0:03:01]}  Nc6 {[%clk 0:03:02]} 6. Bg5 {[%clk 0:02:59]}  Qb6 {[%clk 0:03:02]} 7. Bxf6 {[%clk 0:02:47]}  gxf6 {[%clk 0:03:03]} 8. Nb3 {[%clk 0:02:41]}  f5 {[%clk 0:03:01]} 9. Bd3 {[%clk 0:02:23]}  fxe4 {[%clk 0:03:01]} 10. Bxe4 {[%clk 0:02:23]}  Bg7 {[%clk 0:03:01]} 11. Qh5 {[%clk 0:02:18]}  Bxc3+ {[%clk 0:02:54]} 12. bxc3 {[%clk 0:02:17]}  Be6 {[%clk 0:02:54]} 13. O-O {[%clk 0:02:08]}  O-O-O {[%clk 0:02:14]} 14. Rab1 {[%clk 0:02:08]}  d5 {[%clk 0:02:13]} 15. Bf3 {[%clk 0:01:47]}  Qc7 {[%clk 0:02:04]} 16. Nc5 {[%clk 0:01:46]}  b6 {[%clk 0:01:58]} 17. Nxe6 {[%clk 0:01:36]}  fxe6 {[%clk 0:01:59]} 18. Rfe1 {[%clk 0:01:21]}  Rd6 {[%clk 0:01:57]} 19. Qg4 {[%clk 0:01:17]}  h5 {[%clk 0:01:46]} 20. Qh3 {[%clk 0:01:11]}  Nd8 {[%clk 0:01:43]} 21. Bxh5 {[%clk 0:01:06]}  Rc6 {[%clk 0:01:31]} 22. Qg4 {[%clk 0:01:01]}  Kb8 {[%clk 0:01:12]} 23. h3 {[%clk 0:00:58]}  Rxc3 {[%clk 0:01:06]} 24. Bg6 {[%clk 0:00:52]}  Rg8 {[%clk 0:01:02]} 25. Qh5 {[%clk 0:00:52]}  Rc4 {[%clk 0:00:47]} 26. Bd3 {[%clk 0:00:41]}  Rf4 {[%clk 0:00:46]} 27. Qe5 {[%clk 0:00:33]}  Rh4 {[%clk 0:00:41]} 28. Qxc7+ {[%clk 0:00:33]}  Kxc7 {[%clk 0:00:42]} 29. Kh2 {[%clk 0:00:27]}  Rgh8 {[%clk 0:00:41]} 30. Re5 {[%clk 0:00:25]}  Kd6 {[%clk 0:00:41]} 31. Rbe1 {[%clk 0:00:24]}  R8h6 {[%clk 0:00:38]} 32. R5e3 {[%clk 0:00:20]}  Nc6 {[%clk 0:00:29]} 33. Bf1 {[%clk 0:00:20]}  Nb4 {[%clk 0:00:23]} 34. c3 {[%clk 0:00:18]}  Nc2 {[%clk 0:00:23]} 35. R1e2 {[%clk 0:00:18]}  Nxe3 {[%clk 0:00:22]} 36. Rxe3 {[%clk 0:00:19]}  Ra4 {[%clk 0:00:20]} 37. Re2 {[%clk 0:00:19]}  e5 {[%clk 0:00:20]} 38. g3 {[%clk 0:00:18]}  d4 {[%clk 0:00:21]} 39. Rd2 {[%clk 0:00:16]}  Rh8 {[%clk 0:00:17]} 40. c4 {[%clk 0:00:15]}  Kc5 {[%clk 0:00:16]} 41. Bd3 {[%clk 0:00:16]}  Ra3 {[%clk 0:00:15]} 42. h4 {[%clk 0:00:15]}  Kb4 {[%clk 0:00:14]} 43. Kh3 {[%clk 0:00:15]}  Kc3 {[%clk 0:00:14]} 44. Rd1 {[%clk 0:00:15]}  Rxa2 {[%clk 0:00:15]} 45. f3 {[%clk 0:00:10]}  Rd2 {[%clk 0:00:15]} 0-1


[Site "https://www.chess.com"]

[Event "Titled Tuesday Blitz June 27 Early 2023"]
[White "Demchenko, Anton"]
[Black "Lavrik, Dmitry"]
[WhiteFideId "4160258"]
[BlackFideId "24113190"]
[WhiteElo "2908"]
[BlackElo "2721"]
[Result "1-0"]
[Round "3"]
[TimeControl "180+2"]
[Date "2023.06.27"]
[WhiteClock "0:00:20"]
[BlackClock "0:00:03"]
[Board "26"]

1. e4 {[%clk 0:02:59]}  c5 {[%clk 0:02:59]} 2. Nf3 {[%clk 0:02:56]}  e6 {[%clk 0:03:00]} 3. g3 {[%clk 0:02:53]}  a6 {[%clk 0:02:41]} 4. Bg2 {[%clk 0:02:53]}  b5 {[%clk 0:02:41]} 5. O-O {[%clk 0:02:53]}  Bb7 {[%clk 0:02:42]} 6. Re1 {[%clk 0:02:54]}  d6 {[%clk 0:02:35]} 7. c3 {[%clk 0:02:52]}  Nf6 {[%clk 0:02:34]} 8. Ng5 {[%clk 0:02:40]}  Be7 {[%clk 0:02:25]} 9. d4 {[%clk 0:02:27]}  cxd4 {[%clk 0:02:25]} 10. cxd4 {[%clk 0:02:28]}  O-O {[%clk 0:02:25]} 11. e5 {[%clk 0:01:58]}  Nd5 {[%clk 0:02:13]} 12. h4 {[%clk 0:01:47]}  Nd7 {[%clk 0:02:08]} 13. Qd3 {[%clk 0:01:26]}  Bxg5 {[%clk 0:02:00]} 14. Bxg5 {[%clk 0:01:25]}  Qb6 {[%clk 0:02:00]} 15. Bxd5 {[%clk 0:00:58]}  Bxd5 {[%clk 0:01:55]} 16. Be7 {[%clk 0:00:59]}  dxe5 {[%clk 0:00:26]} 17. Bxf8 {[%clk 0:00:58]}  e4 {[%clk 0:00:26]} 18. Qe3 {[%clk 0:00:59]}  Rxf8 {[%clk 0:00:26]} 19. Nc3 {[%clk 0:01:00]}  Ba8 {[%clk 0:00:25]} 20. Nxe4 {[%clk 0:00:46]}  Qb7 {[%clk 0:00:25]} 21. f3 {[%clk 0:00:46]}  Nb6 {[%clk 0:00:26]} 22. Rac1 {[%clk 0:00:40]}  Nd5 {[%clk 0:00:25]} 23. Qf2 {[%clk 0:00:40]}  Rd8 {[%clk 0:00:20]} 24. a3 {[%clk 0:00:39]}  h6 {[%clk 0:00:21]} 25. Rc2 {[%clk 0:00:37]}  Ne7 {[%clk 0:00:19]} 26. g4 {[%clk 0:00:33]}  Nd5 {[%clk 0:00:17]} 27. Rec1 {[%clk 0:00:30]}  Nf4 {[%clk 0:00:15]} 28. Qe3 {[%clk 0:00:30]}  Nd5 {[%clk 0:00:13]} 29. Qd2 {[%clk 0:00:30]}  f5 {[%clk 0:00:09]} 30. Nc5 {[%clk 0:00:29]}  Qb8 {[%clk 0:00:09]} 31. g5 {[%clk 0:00:27]}  Qg3+ {[%clk 0:00:08]} 32. Qg2 {[%clk 0:00:28]}  Qxh4 {[%clk 0:00:08]} 33. Nxe6 {[%clk 0:00:24]}  Ne3 {[%clk 0:00:07]} 34. Qh2 {[%clk 0:00:24]}  Qxh2+ {[%clk 0:00:05]} 35. Kxh2 {[%clk 0:00:25]}  Nxc2 {[%clk 0:00:05]} 36. Nxd8 {[%clk 0:00:25]}  Nxd4 {[%clk 0:00:04]} 37. Rc8 {[%clk 0:00:23]}  Nxf3+ {[%clk 0:00:03]} 38. Kg3 {[%clk 0:00:23]}  Be4 {[%clk 0:00:03]} 39. g6 {[%clk 0:00:20]}  Kf8 {[%clk 0:00:03]} 40. Nc6# {[%clk 0:00:20]} 1-0


[Site "https://www.chess.com"]

[Event "Titled Tuesday Blitz June 27 Early 2023"]
[White "Matinian, Nikita"]
[Black "Makhnev, Denis"]
[WhiteFideId "24129100"]
[BlackFideId "13707647"]
[WhiteElo "2717"]
[BlackElo "2897"]
[Result "0-1"]
[Round "3"]
[TimeControl "180+2"]
[Date "2023.06.27"]
[WhiteClock "0:00:07"]
[BlackClock "0:00:25"]
[Board "28"]

1. e4 {[%clk 0:03:00]}  e5 {[%clk 0:02:59]} 2. Nf3 {[%clk 0:03:00]}  Nc6 {[%clk 0:03:00]} 3. Bb5 {[%clk 0:03:01]}  a6 {[%clk 0:03:00]} 4. Ba4 {[%clk 0:03:02]}  Nf6 {[%clk 0:03:01]} 5. O-O {[%clk 0:03:01]}  Be7 {[%clk 0:03:01]} 6. d3 {[%clk 0:03:01]}  d6 {[%clk 0:02:57]} 7. c3 {[%clk 0:02:55]}  O-O {[%clk 0:02:57]} 8. Nbd2 {[%clk 0:02:54]}  b5 {[%clk 0:02:51]} 9. Bc2 {[%clk 0:02:54]}  Bb7 {[%clk 0:02:46]} 10. a4 {[%clk 0:02:53]}  Nb8 {[%clk 0:02:45]} 11. d4 {[%clk 0:02:52]}  Nbd7 {[%clk 0:02:45]} 12. Re1 {[%clk 0:02:50]}  Re8 {[%clk 0:02:45]} 13. Bd3 {[%clk 0:02:50]}  c6 {[%clk 0:02:31]} 14. b3 {[%clk 0:02:50]}  Bf8 {[%clk 0:02:30]} 15. Bb2 {[%clk 0:02:51]}  g6 {[%clk 0:02:30]} 16. Nf1 {[%clk 0:02:37]}  Nh5 {[%clk 0:02:24]} 17. g3 {[%clk 0:02:23]}  Bg7 {[%clk 0:02:23]} 18. Ne3 {[%clk 0:02:20]}  Nhf6 {[%clk 0:02:20]} 19. dxe5 {[%clk 0:02:18]}  dxe5 {[%clk 0:02:17]} 20. b4 {[%clk 0:02:18]}  Nb6 {[%clk 0:02:09]} 21. Bc2 {[%clk 0:01:54]}  Nxa4 {[%clk 0:01:58]} 22. Bxa4 {[%clk 0:01:28]}  bxa4 {[%clk 0:01:59]} 23. Nc4 {[%clk 0:01:25]}  c5 {[%clk 0:01:23]} 24. Nd6 {[%clk 0:01:22]}  Bc6 {[%clk 0:01:23]} 25. Nxe8 {[%clk 0:01:20]}  Qxe8 {[%clk 0:01:23]} 26. Qc2 {[%clk 0:01:12]}  Rc8 {[%clk 0:01:14]} 27. bxc5 {[%clk 0:01:12]}  Nd7 {[%clk 0:01:14]} 28. Ba3 {[%clk 0:01:09]}  Bf8 {[%clk 0:01:11]} 29. Rad1 {[%clk 0:01:00]}  Nxc5 {[%clk 0:01:09]} 30. Nd2 {[%clk 0:00:56]}  Bb5 {[%clk 0:00:52]} 31. Nf1 {[%clk 0:00:47]}  Nd3 {[%clk 0:00:49]} 32. Rxd3 {[%clk 0:00:38]}  Bxd3 {[%clk 0:00:48]} 33. Qxd3 {[%clk 0:00:39]}  Bxa3 {[%clk 0:00:48]} 34. Ne3 {[%clk 0:00:40]}  Bc5 {[%clk 0:00:39]} 35. Nd5 {[%clk 0:00:40]}  Qb5 {[%clk 0:00:36]} 36. Qf3 {[%clk 0:00:34]}  a3 {[%clk 0:00:36]} 37. c4 {[%clk 0:00:30]}  Qb2 {[%clk 0:00:34]} 38. Re2 {[%clk 0:00:23]}  a2 {[%clk 0:00:33]} 39. Kg2 {[%clk 0:00:15]}  a1=Q {[%clk 0:00:33]} 40. Nf6+ {[%clk 0:00:15]}  Kg7 {[%clk 0:00:27]} 41. Ng4 {[%clk 0:00:07]}  Be7 {[%clk 0:00:25]} 0-1


[Site "https://www.chess.com"]

[Event "Titled Tuesday Blitz June 27 Early 2023"]
[White "Seo, Jung Min"]
[Black "De Silva, L M S T"]
[WhiteFideId "1734687"]
[BlackFideId "9953698"]
[WhiteElo "2883"]
[BlackElo "2706"]
[Result "0-1"]
[Round "3"]
[TimeControl "180+2"]
[Date "2023.06.27"]
[WhiteClock "0:00:51"]
[BlackClock "0:00:36"]
[Board "31"]

1. e4 {[%clk 0:03:00]}  e5 {[%clk 0:03:00]} 2. Nf3 {[%clk 0:03:00]}  Nc6 {[%clk 0:03:00]} 3. Bb5 {[%clk 0:03:00]}  a6 {[%clk 0:03:01]} 4. Ba4 {[%clk 0:03:00]}  Nf6 {[%clk 0:03:01]} 5. O-O {[%clk 0:03:00]}  Be7 {[%clk 0:03:02]} 6. Re1 {[%clk 0:02:59]}  b5 {[%clk 0:03:02]} 7. Bb3 {[%clk 0:03:00]}  O-O {[%clk 0:03:03]} 8. h3 {[%clk 0:02:58]}  Bb7 {[%clk 0:02:59]} 9. d3 {[%clk 0:02:55]}  d5 {[%clk 0:02:56]} 10. exd5 {[%clk 0:02:49]}  Nxd5 {[%clk 0:02:57]} 11. Nbd2 {[%clk 0:02:39]}  Nd4 {[%clk 0:02:34]} 12. Rxe5 {[%clk 0:02:32]}  Bf6 {[%clk 0:02:22]} 13. Re1 {[%clk 0:02:29]}  Nxb3 {[%clk 0:02:06]} 14. Nxb3 {[%clk 0:02:27]}  Qd6 {[%clk 0:02:05]} 15. d4 {[%clk 0:02:10]}  Rae8 {[%clk 0:02:00]} 16. c3 {[%clk 0:02:10]}  Nf4 {[%clk 0:01:54]} 17. Bxf4 {[%clk 0:01:57]}  Qxf4 {[%clk 0:01:55]} 18. Qd2 {[%clk 0:01:46]}  Qf5 {[%clk 0:01:53]} 19. Re3 {[%clk 0:01:42]}  Bg5 {[%clk 0:01:33]} 20. Nxg5 {[%clk 0:01:40]}  Qxg5 {[%clk 0:01:34]} 21. g3 {[%clk 0:01:35]}  Qd5 {[%clk 0:01:14]} 22. f3 {[%clk 0:01:33]}  Qh5 {[%clk 0:00:54]} 23. Kh2 {[%clk 0:01:23]}  f5 {[%clk 0:00:44]} 24. Rae1 {[%clk 0:01:17]}  Rd8 {[%clk 0:00:37]} 25. f4 {[%clk 0:01:02]}  Rd6 {[%clk 0:00:37]} 26. Qf2 {[%clk 0:00:51]}  Qxh3+ {[%clk 0:00:36]} 0-1


[Site "https://www.chess.com"]